Workbook

Sheet BSG
A1: Please enter your specific information below
A4: Mean
A5: Standard Deviation
A6: Target
A10: Y Axis Min | B10: -0.05
A11: Y Axis Max | B11: 0.05
E15: Mean - Target | F15: =IF(B6>1,B4-B6,"") -> 

Sheet Data (hidden)
A1: Mean | B1: Std Dev
A2: 0.05 | B2: 0
A3: 0.05 | B3: 0.02
A4: 0 | B4: 0.035
A5: -0.05 | B5: 0.02
A6: -0.05 | B6: 0
A8: Mean | B8: Std Dev | C8: Z Upper | D8: Z Lower | E8: % Compliance | F8: % Compliance | G8: Total Compliance
A9: 0.05 | B9: 0.02
A10: 0.05 | B10: 0.035 | C10: =(BSG!$B$14-A10)/B10 -> -1.428571429 | D10: =(A10-BSG!$B$13)/B10 -> 1.428571429 | E10: =NORMSDIST(C10)-0.5 -> -0.4234362745 | F10: =NORMSDIST(D10)-0.5 -> 0.4234362745 | G10: =E10+F10 -> 0
A11: 0.049 | B11: 0.036 | C11: =(BSG!$B$14-A11)/B11 -> -1.361111111 | D11: =(A11-BSG!$B$13)/B11 -> 1.361111111 | E11: =NORMSDIST(C11)-0.5 -> -0.4132607106 | F11: =NORMSDIST(D11)-0.5 -> 0.4132607106 | G11: =E11+F11 -> 0
A12: =A10-0.002 -> 0.048 | B12: 0.0371 | C12: =(BSG!$B$14-A12)/B12 -> -1.293800539 | D12: =(A12-BSG!$B$13)/B12 -> 1.293800539 | E12: =NORMSDIST(C12)-0.5 -> -0.4021328368 | F12: 0.4021328368 | G12: =E12+F12 -> 0
A13: 0.047 | B13: 0.03797 | C13: =(BSG!$B$14-A13)/B13 -> -1.237819331 | D13: =(A13-BSG!$B$13)/B13 -> 1.237819331 | E13: =NORMSDIST(C13)-0.5 -> -0.3921084705 | F13: =NORMSDIST(D13)-0.5 -> 0.3921084705 | G13: =E13+F13 -> 0
A14: =A12-0.002 -> 0.046 | B14: 0.03879568922 | C14: =(BSG!$B$14-A14)/B14 -> -1.185698745 | D14: =(A14-BSG!$B$13)/B14 -> 1.185698745 | E14: -0.3821293547 | F14: 0.3821293547 | G14: 0
A15: =A14-0.002 -> 0.044 | B15: 0.03989684885 | C15: =(BSG!$B$14-A15)/B15 -> -1.102843991 | D15: =(A15-BSG!$B$13)/B15 -> 1.102843991 | E15: -0.3649525397 | F15: 0.3649525397 | G15: 0
A16: 0.042 | B16: 0.04100026792 | C16: =(BSG!$B$14-A16)/B16 -> -1.02438355 | D16: =(A16-BSG!$B$13)/B16 -> 1.02438355 | E16: -0.3471729256 | F16: 0.3471729256 | G16: 0
A17: 0.04 | B17: 0.04210066452 | C17: =(BSG!$B$14-A17)/B17 -> -0.9501037682 | D17: =(A17-BSG!$B$13)/B17 -> 0.9501037682 | E17: -0.3289702356 | F17: 0.3289702356 | G17: 0
A18: 0.038 | B18: 0.04319341563 | C18: =(BSG!$B$14-A18)/B18 -> -0.8797637197 | D18: =(A18-BSG!$B$13)/B18 -> 0.8797637197 | E18: -0.3105063388 | F18: 0.3105063388 | G18: 0
A19: 0.036 | B19: 0.04427170986 | C19: =(BSG!$B$14-A19)/B19 -> -0.8131603707 | D19: =(A19-BSG!$B$13)/B19 -> 0.8131603707 | E19: -0.2919369414 | F19: 0.2919369414 | G19: 0
A20: 0.034 | B20: 0.04533239015 | C20: =(BSG!$B$14-A20)/B20 -> -0.7500156045 | D20: =(A20-BSG!$B$13)/B20 -> 0.7500156045 | E20: -0.2733773467 | F20: 0.2733773467 | G20: 0
A21: 0.032 | B21: 0.04636441248 | C21: =(BSG!$B$14-A21)/B21 -> -0.690184525 | D21: =(A21-BSG!$B$13)/B21 -> 0.690184525 | E21: -0.2549609231 | F21: 0.2549609231 | G21: 0
A22: 0.03 | B22: 0.04737067688 | C22: =(BSG!$B$14-A22)/B22 -> -0.6333031736 | D22: =(A22-BSG!$B$13)/B22 -> 0.6333031736 | E22: -0.2367321594 | F22: 0.2367321594 | G22: 0
A23: 0.028 | B23: 0.04832611753 | C23: =(BSG!$B$14-A23)/B23 -> -0.5793968444 | D23: =(A23-BSG!$B$13)/B23 -> 0.5793968444 | E23: -0.2188392836 | F23: 0.2188392836 | G23: 0
A24: 0.026 | B24: 0.04923749355 | C24: =(BSG!$B$14-A24)/B24 -> -0.5280528744 | D24: =(A24-BSG!$B$13)/B24 -> 0.5280528744 | E24: -0.201268681 | F24: 0.201268681 | G24: 0
A25: 0.024 | B25: 0.05009668677 | C25: =(BSG!$B$14-A25)/B25 -> -0.4790735984 | D25: =(A25-BSG!$B$13)/B25 -> 0.4790735984 | E25: -0.1840568644 | F25: 0.1840568644 | G25: 0
A26: 0.022 | B26: 0.05089903355 | C26: =(BSG!$B$14-A26)/B26 -> -0.4322282461 | D26: =(A26-BSG!$B$13)/B26 -> 0.4322282461 | E26: -0.167212234 | F26: 0.167212234 | G26: 0
A27: 0.02 | B27: 0.05163821255 | C27: =(BSG!$B$14-A27)/B27 -> -0.3873100755 | D27: =(A27-BSG!$B$13)/B27 -> 0.3873100755 | E27: -0.1507366663 | F27: 0.1507366663 | G27: 0
A28: 0.018 | B28: 0.05230679014 | C28: =(BSG!$B$14-A28)/B28 -> -0.3441235823 | D28: =(A28-BSG!$B$13)/B28 -> 0.3441235823 | E28: -0.1346233257 | F28: 0.1346233257 | G28: 0
A29: 0.016 | B29: 0.05291543028 | C29: =(BSG!$B$14-A29)/B29 -> -0.3023692695 | D29: =(A29-BSG!$B$13)/B29 -> 0.3023692695 | E29: -0.1188147108 | F29: 0.1188147108 | G29: 0
A30: 0.014 | B30: 0.05345210697 | C30: =(BSG!$B$14-A30)/B30 -> -0.26191671 | D30: =(A30-BSG!$B$13)/B30 -> 0.26191671 | E30: -0.1033071718 | F30: 0.1033071718 | G30: 0
A31: 0.012 | B31: 0.05391669027 | C31: =(BSG!$B$14-A31)/B31 -> -0.2225655904 | D31: =(A31-BSG!$B$13)/B31 -> 0.2225655904 | E31: -0.08806319019 | F31: 0.08806319019 | G31: 0
A32: 0.01 | B32: 0.05431136621 | C32: =(BSG!$B$14-A32)/B32 -> -0.1841235214 | D32: =(A32-BSG!$B$13)/B32 -> 0.1841235214 | E32: -0.07304172275 | F32: 0.07304172275 | G32: 0
A33: 0.008 | B33: 0.05463368782 | C33: =(BSG!$B$14-A33)/B33 -> -0.1464298003 | D33: =(A33-BSG!$B$13)/B33 -> 0.1464298003 | E33: -0.05820894821 | F33: 0.05820894821 | G33: -5.551115123e-17
A34: 0.006 | B34: 0.05488435011 | C34: =(BSG!$B$14-A34)/B34 -> -0.1093207807 | D34: =(A34-BSG!$B$13)/B34 -> 0.1093207807 | E34: -0.04352596761 | F34: 0.04352596761 | G34: 0
A35: 0.004 | B35: 0.05506341367 | C35: =(BSG!$B$14-A35)/B35 -> -0.07264351652 | D35: =(A35-BSG!$B$13)/B35 -> 0.07264351652 | E35: -0.0289551015 | F35: 0.0289551015 | G35: -5.551115123e-17
A36: 0.002 | B36: 0.05517083467 | C36: =(BSG!$B$14-A36)/B36 -> -0.03625103756 | D36: =(A36-BSG!$B$13)/B36 -> 0.03625103756 | E36: -0.01445890469 | F36: 0.01445890469 | G36: 0
A37: 0 | B37: 0.05520663229 | C37: =(BSG!$B$14-A37)/B37 -> 0 | D37: =(A37-BSG!$B$13)/B37 -> 0 | E37: 0 | F37: 0 | G37: 0
A38: -0.002 | B38: 0.0551708382 | C38: =(BSG!$B$14-A38)/B38 -> 0.03625103525 | D38: =(A38-BSG!$B$13)/B38 -> -0.03625103525 | E38: 0.01445890377 | F38: -0.01445890377 | G38: 0
A39: -0.004 | B39: 0.05506342992 | C39: =(BSG!$B$14-A39)/B39 -> 0.07264349507 | D39: =(A39-BSG!$B$13)/B39 -> -0.07264349507 | E39: 0.02895509296 | F39: -0.02895509296 | G39: 0
A40: -0.006 | B40: 0.05488436271 | C40: =(BSG!$B$14-A40)/B40 -> 0.1093207556 | D40: =(A40-BSG!$B$13)/B40 -> -0.1093207556 | E40: 0.04352595765 | F40: -0.04352595765 | G40: 0
A41: -0.008 | B41: 0.05463368295 | C41: =(BSG!$B$14-A41)/B41 -> 0.1464298134 | D41: =(A41-BSG!$B$13)/B41 -> -0.1464298134 | E41: 0.05820895337 | F41: -0.05820895337 | G41: 5.551115123e-17
A42: -0.01 | B42: 0.05431135962 | C42: =(BSG!$B$14-A42)/B42 -> 0.1841235438 | D42: =(A42-BSG!$B$13)/B42 -> -0.1841235438 | E42: 0.07304173151 | F42: -0.07304173151 | G42: 0
A43: -0.012 | B43: 0.05392412889 | C43: =(BSG!$B$14-A43)/B43 -> 0.2225348883 | D43: =(A43-BSG!$B$13)/B43 -> -0.2225348883 | E43: 0.08805124144 | F43: -0.08805124144 | G43: 0
A44: -0.014 | B44: 0.05345215399 | C44: =(BSG!$B$14-A44)/B44 -> 0.2619164796 | D44: =(A44-BSG!$B$13)/B44 -> -0.2619164796 | E44: 0.1033070829 | F44: -0.1033070829 | G44: 0
A45: -0.016 | B45: 0.05291527073 | C45: =(BSG!$B$14-A45)/B45 -> 0.3023701812 | D45: =(A45-BSG!$B$13)/B45 -> -0.3023701812 | E45: 0.1188150583 | F45: -0.1188150583 | G45: 0
A46: -0.018 | B46: 0.0523067023 | C46: =(BSG!$B$14-A46)/B46 -> 0.3441241602 | D46: =(A46-BSG!$B$13)/B46 -> -0.3441241602 | E46: 0.134623543 | F46: -0.134623543 | G46: 0
A47: -0.02 | B47: 0.05163820477 | C47: =(BSG!$B$14-A47)/B47 -> 0.3873101338 | D47: =(A47-BSG!$B$13)/B47 -> -0.3873101338 | E47: 0.1507366879 | F47: -0.1507366879 | G47: 0
A48: -0.022 | B48: 0.05089895919 | C48: =(BSG!$B$14-A48)/B48 -> 0.4322288775 | D48: =(A48-BSG!$B$13)/B48 -> -0.4322288775 | E48: 0.1672124634 | F48: -0.1672124634 | G48: 0
A49: -0.024 | B49: 0.05009669598 | C49: =(BSG!$B$14-A49)/B49 -> 0.4790735103 | D49: =(A49-BSG!$B$13)/B49 -> -0.4790735103 | E49: 0.1840568331 | F49: -0.1840568331 | G49: 0
A50: -0.026 | B50: 0.04923750983 | C50: =(BSG!$B$14-A50)/B50 -> 0.5280526999 | D50: =(A50-BSG!$B$13)/B50 -> -0.5280526999 | E50: 0.2012686205 | F50: -0.2012686205 | G50: 0
A51: -0.028 | B51: 0.04832613081 | C51: =(BSG!$B$14-A51)/B51 -> 0.5793966852 | D51: =(A51-BSG!$B$13)/B51 -> -0.5793966852 | E51: 0.2188392299 | F51: -0.2188392299 | G51: 0
A52: -0.03 | B52: 0.04737203413 | C52: =(BSG!$B$14-A52)/B52 -> 0.6332850288 | D52: =(A52-BSG!$B$13)/B52 -> -0.6332850288 | E52: 0.2367262359 | F52: -0.2367262359 | G52: 0
A53: -0.032 | B53: 0.04636457698 | C53: =(BSG!$B$14-A53)/B53 -> 0.6901820762 | D53: =(A53-BSG!$B$13)/B53 -> -0.6901820762 | E53: 0.2549601532 | F53: -0.2549601532 | G53: 0
A54: -0.034 | B54: 0.04533238759 | C54: =(BSG!$B$14-A54)/B54 -> 0.7500156468 | D54: =(A54-BSG!$B$13)/B54 -> -0.7500156468 | E54: 0.2733773594 | F54: -0.2733773594 | G54: 0
A55: -0.036 | B55: 0.04427170566 | C55: =(BSG!$B$14-A55)/B55 -> 0.8131604479 | D55: =(A55-BSG!$B$13)/B55 -> -0.8131604479 | E55: 0.2919369635 | F55: -0.2919369635 | G55: 0
A56: -0.038 | B56: 0.04319341695 | C56: =(BSG!$B$14-A56)/B56 -> 0.8797636927 | D56: =(A56-BSG!$B$13)/B56 -> -0.8797636927 | E56: 0.3105063314 | F56: -0.3105063314 | G56: 0
A57: -0.04 | B57: 0.04210066217 | C57: =(BSG!$B$14-A57)/B57 -> 0.9501038212 | D57: =(A57-BSG!$B$13)/B57 -> -0.9501038212 | E57: 0.3289702491 | F57: -0.3289702491 | G57: 0
A58: -0.042 | B58: 0.04100022236 | C58: =(BSG!$B$14-A58)/B58 -> 1.024384688 | D58: =(A58-BSG!$B$13)/B58 -> -1.024384688 | E58: 0.3471731944 | F58: -0.3471731944 | G58: 0
A59: -0.044 | B59: 0.03989687413 | C59: =(BSG!$B$14-A59)/B59 -> 1.102843292 | D59: =(A59-BSG!$B$13)/B59 -> -1.102843292 | E59: 0.3649523879 | F59: -0.3649523879 | G59: 0
A60: -0.046 | B60: 0.03879 | C60: =(BSG!$B$14-A60)/B60 -> 1.185872648 | D60: =(A60-BSG!$B$13)/B60 -> -1.185872648 | E60: 0.3821637018 | F60: -0.3821637018 | G60: 0
A61: -0.047 | B61: 0.03797 | C61: =(BSG!$B$14-A61)/B61 -> 1.237819331 | D61: =(A61-BSG!$B$13)/B61 -> -1.237819331 | E61: =NORMSDIST(C61)-0.5 -> 0.3921084705 | F61: =NORMSDIST(D61)-0.5 -> -0.3921084705 | G61: =E61+F61 -> 0
A62: =A60-0.002 -> -0.048 | B62: 0.0371 | C62: =(BSG!$B$14-A62)/B62 -> 1.293800539 | D62: =(A62-BSG!$B$13)/B62 -> -1.293800539 | E62: 0.4021328368 | F62: -0.4021328368 | G62: 0
A63: -0.049 | B63: 0.036 | C63: =(BSG!$B$14-A63)/B63 -> 1.361111111 | D63: =(A63-BSG!$B$13)/B63 -> -1.361111111 | E63: =NORMSDIST(C63)-0.5 -> 0.4132607106 | F63: =NORMSDIST(D63)-0.5 -> -0.4132607106 | G63: =E63+F63 -> 0
A64: =A62-0.002 -> -0.05 | B64: 0.035 | C64: =(BSG!$B$14-A64)/B64 -> 1.428571429 | D64: =(A64-BSG!$B$13)/B64 -> -1.428571429 | E64: 0.4234362745 | F64: -0.4234362745 | G64: 0
A65: -0.05 | B65: 0.02
